bitfinex/quotes_SOLUSD_20220228
["timestamp","ask_amount","ask_price","bid_price","bid_amount"]
[1646035053718,1.8421415,88.295,88.235,44.81731611]
[1646035053921,1.61481294,88.293,88.235,44.81731611]
[1646035054119,4.531,88.292,88.235,44.81731611]
[1646035055019,1.61481294,88.293,88.235,44.81731611]
[1646035055519,17.0087,88.29,88.235,44.81731611]
[1646035055727,1.43281864,88.289,88.235,44.81731611]
[1646035056524,9.66281864,88.289,88.202,113.1]
[1646035056724,9.66281864,88.289,88.205,6.0]
[1646035056922,17.0103,88.28,88.2,113.1]
[1646035057124,1.53942502,88.278,88.2,113.1]
[1646035057325,6.0,88.277,88.2,113.1]
[1646035057522,6.0,88.277,88.19,17.0081]
[1646035057523,6.0,88.277,88.201,64.43662698]
[1646035057724,6.0,88.277,88.201,58.43662698]
[1646035057923,6.3369072,88.275,88.201,58.43662698]
[1646035058125,4.533,88.274,88.201,58.43662698]
[1646035058327,17.0125,88.27,88.201,58.43662698]
[1646035058624,6.40257735,88.269,88.201,58.43662698]
[1646035059026,23.0023,88.268,88.201,58.43662698]
[1646035059325,1.59511268,88.267,88.201,58.43662698]
[1646035059632,1.4123673,88.259,88.201,58.43662698]
[1646035059827,23.0023,88.258,88.201,58.43662698]
[1646035060025,1.68316682,88.257,88.201,58.43662698]
[1646035062929,6.0,88.256,88.201,58.43662698]
[1646035067134,1.68316682,88.257,88.201,58.43662698]
[1646035072136,6.0,88.256,88.201,58.43662698]
[1646035072337,23.0023,88.258,88.202,121.84678921]
[1646035072738,23.0023,88.258,88.203,2.74678921]
[1646035072935,23.0023,88.258,88.204,6.0]
[1646035073338,23.0023,88.258,88.204,8.74678921]
[1646035074336,23.0023,88.258,88.204,121.84678921]
[1646035076137,23.0023,88.258,88.204,8.74678921]
[1646035077142,23.0023,88.258,88.204,6.0]
[1646035077339,23.0023,88.258,88.201,75.34722698]
[1646035077538,6.80082792,88.257,88.201,75.34722698]
[1646035080141,23.0023,88.258,88.201,58.43662698]
[1646035081541,23.0023,88.258,88.202,113.1]
[1646035081742,24.0699,88.277,88.204,113.1]
[1646035081941,24.0699,88.277,88.206,113.1]
[1646035082142,24.0699,88.277,88.208,113.1]
[1646035082342,24.0699,88.277,88.21,113.1]
[1646035082542,67.12996789,88.277,88.211,6.0]
[1646035082744,67.12996789,88.277,88.209,6.0]
[1646035082947,67.12996789,88.277,88.209,5.5]
[1646035083146,67.12996789,88.277,88.203,115.84678921]
[1646035084248,1.72018089,88.292,88.205,113.1]
[1646035084447,23.9751,88.296,88.207,113.1]
[1646035084649,23.9751,88.296,88.211,113.1]
[1646035084847,23.9751,88.296,88.213,113.1]
[1646035085049,23.9751,88.296,88.214,12.91958459]
[1646035085348,23.9751,88.296,88.216,2.5690272]
[1646035085552,22.5122,88.318,88.221,113.1]
[1646035085751,23.2504,88.317,88.24,16.9997]
[1646035085948,23.2504,88.317,88.241,6.0]
[1646035086147,37.79325237,88.316,88.242,44.16166179]
[1646035086350,1.60014921,88.315,88.242,44.16166179]
[1646035086951,1.60014921,88.315,88.243,6.0]
[1646035087151,42.32425237,88.316,88.243,8.74678921]
[1646035087349,7.67090683,88.315,88.244,6.0]
[1646035087550,7.67090683,88.315,88.242,44.16166179]
[1646035087750,6.00147697,88.314,88.242,43.66166179]
[1646035087952,8.74826618,88.314,88.242,43.66166179]
[1646035088154,8.74826618,88.314,88.203,2.66573608]
[1646035088350,8.74826618,88.314,88.201,4.531]
[1646035088351,1.43521954,88.309,88.201,4.531]
[1646035088553,4.532,88.308,88.202,6.0]
[1646035088852,8.92366507,88.308,88.201,6.0]
[1646035089052,1.38081781,88.306,88.201,6.0]
[1646035089254,1.81770178,88.304,88.202,45.6477078]
[1646035089452,6.45845886,88.302,88.203,6.0]
[1646035089653,6.31915836,88.301,88.203,6.0]
[1646035090067,2.74678921,88.3,88.203,6.0]
[1646035090269,17.0087,88.29,88.202,45.6477078]
[1646035090471,20.88373032,88.3,88.202,45.6477078]
[1646035090472,39.46665437,88.288,88.202,45.6477078]
[1646035090771,6.18413583,88.287,88.202,45.6477078]
[1646035091374,17.0112,88.28,88.192,4.532]
[1646035091570,28.3438,88.279,88.177,43.36637063]
[1646035091872,1.46523154,88.278,88.177,26.65436457]
[1646035092069,1.46523154,88.278,88.178,4.533]
[1646035092468,17.0152,88.26,88.179,45.3503262]
[1646035092669,8.70157021,88.258,88.179,45.3503262]
[1646035092869,8.70157021,88.258,88.18,6.0]
[1646035093272,1.43864433,88.256,88.181,28.3876979]
[1646035093469,1.43864433,88.256,88.182,6.0]
[1646035094470,6.0,88.255,88.182,6.0]
[1646035095270,1.43864433,88.256,88.183,28.3876979]
[1646035095471,1.43864433,88.256,88.184,6.0]
[1646035095874,1.43864433,88.256,88.185,28.3876979]
[1646035096072,1.43864433,88.256,88.186,6.0]
[1646035096373,1.43864433,88.256,88.187,28.3876979]
[1646035096572,1.43864433,88.256,88.188,6.0]
[1646035096973,23.6144,88.257,88.189,113.1]
[1646035097174,23.6144,88.257,88.19,6.0]
[1646035097379,23.6144,88.257,88.191,112.6]
[1646035097577,23.6144,88.257,88.193,112.6]
[1646035097780,23.6144,88.257,88.194,8.54648756]
[1646035097976,23.6144,88.257,88.195,155.3287734]
[1646035098186,23.6144,88.257,88.196,8.46338694]
[1646035098387,23.6144,88.257,88.197,112.6]
[1646035098587,23.6144,88.257,88.199,112.6]
[1646035098790,23.6144,88.257,88.201,112.6]
[1646035098986,23.6144,88.257,88.203,112.6]
[1646035099187,23.6144,88.257,88.204,6.0]
[1646035100188,23.6144,88.257,88.199,6.0]
[1646035100388,31.9644,88.257,88.197,2.74678921]
[1646035100590,31.9644,88.257,88.197,19.93018921]
[1646035100591,40.47217808,88.256,88.197,19.93018921]
[1646035100891,40.47217808,88.256,88.198,6.0]
[1646035101091,1.86163299,88.255,88.198,6.0]
[1646035101288,1.86163299,88.255,88.197,19.93018921]
[1646035102093,1.86163299,88.255,88.181,4.533]
[1646035102291,1.86163299,88.255,88.18,113.1]
[1646035103195,40.47217808,88.256,88.182,25.57067146]
[1646035103398,40.47217808,88.256,88.196,6.0]
[1646035103995,40.47217808,88.256,88.196,5.5]
[1646035104795,23.6144,88.257,88.196,5.5]
[1646035104995,23.6144,88.257,88.197,28.3876979]
[1646035105898,56.29985497,88.257,88.198,6.0]
[1646035106297,1.35641942,88.256,88.195,42.7287734]
[1646035106700,6.0,88.255,88.195,42.7287734]
[1646035108523,7.81762255,88.255,88.174,16.675]
[1646035108724,6.0,88.255,88.176,6.0]
[1646035108922,7.58192745,88.255,88.176,6.0]
[1646035109123,7.58192745,88.255,88.176,5.5]
[1646035109528,7.58192745,88.255,88.177,43.59753258]
[1646035110227,7.58192745,88.255,88.178,6.0]
[1646035110626,5.8933722,88.254,88.177,43.59753258]
[1646035110826,6.0,88.253,88.177,43.59753258]
[1646035111028,7.56831947,88.253,88.177,71.98523048]
[1646035111227,5.88683385,88.252,88.178,6.0]
[1646035111433,7.873574,88.251,88.177,71.98523048]
[1646035111632,4.534,88.25,88.178,6.0]
[1646035111826,7.38307154,88.249,88.177,71.98523048]
[1646035112031,24.2385,88.248,88.177,43.59753258]
[1646035112227,7.41816519,88.247,88.177,43.59753258]
[1646035113532,7.41816519,88.247,88.178,6.0]
[1646035114131,7.41816519,88.247,88.177,43.59753258]
[1646035116836,7.41816519,88.247,88.178,6.0]
[1646035119535,7.81803044,88.247,88.178,6.0]
[1646035119836,17.0185,88.24,88.178,6.0]
[1646035120036,12.06625626,88.239,88.178,6.0]
[1646035120235,7.38957646,88.238,88.178,6.0]
[1646035120437,1.71860092,88.236,88.178,6.0]
[1646035120635,10.534,88.235,88.178,6.0]
[1646035120838,1.87456298,88.234,88.178,6.0]
[1646035121035,6.0,88.233,88.178,6.0]
[1646035121438,17.0201,88.23,88.178,6.0]
[1646035121636,6.0,88.229,88.178,6.0]
[1646035123338,7.44993234,88.229,88.178,6.0]
[1646035124338,7.44993234,88.229,88.144,6.0]
[1646035124539,24.6727,88.228,88.145,4.535]
[1646035124738,7.41468635,88.227,88.146,6.0]
[1646035124939,7.41468635,88.227,88.147,4.535]
[1646035125140,32.68545497,88.225,88.149,53.27071956]
[1646035125339,7.65039493,88.224,88.15,6.0]
[1646035126143,17.0219,88.22,88.15,6.0]
[1646035126345,7.40035411,88.219,88.15,6.0]
[1646035126743,6.378465,88.218,88.15,6.0]
[1646035126943,7.74554002,88.217,88.15,6.0]
[1646035127343,6.0,88.217,88.15,6.0]
[1646035127543,17.0238,88.21,88.15,6.0]
[1646035127744,12.06625626,88.208,88.15,6.0]
[1646035128143,1.42773233,88.207,88.15,6.0]
[1646035128344,6.0,88.206,88.15,6.0]
[1646035128545,6.0,88.206,88.133,6.0]
[1646035128744,17.0258,88.2,88.133,6.0]
[1646035128945,7.70674119,88.199,88.133,6.0]
[1646035129346,7.70674119,88.199,88.134,59.06879338]
[1646035129546,7.70674119,88.199,88.135,6.0]
[1646035131048,7.70674119,88.199,88.134,59.06879338]
[1646035132349,7.70674119,88.199,88.135,6.0]
[1646035135052,7.70674119,88.199,88.134,59.06879338]
[1646035135454,32.68545497,88.189,88.134,59.06879338]
[1646035135652,6.0,88.188,88.134,59.06879338]
[1646035135852,7.64144508,88.188,88.134,59.06879338]
[1646035137854,6.0,88.188,88.134,59.06879338]
[1646035139057,7.66170708,88.188,88.134,59.06879338]
[1646035141170,23.4325,88.238,88.135,115.84678921]
[1646035141366,1.68157725,88.237,88.151,113.1]
[1646035141564,1.68157725,88.237,88.153,113.1]
[1646035141768,1.68157725,88.237,88.154,6.0]
[1646035141967,4.535,88.236,88.15,16.28]
[1646035142167,40.4837405,88.235,88.151,72.47749539]
[1646035142376,10.535,88.234,88.151,72.47749539]
[1646035142577,6.0,88.234,88.151,72.47749539]
[1646035143179,6.0,88.234,88.151,66.47749539]
[1646035143578,17.0204,88.23,88.151,66.47749539]
[1646035143780,6.0,88.229,88.151,66.47749539]
[1646035143981,29.2123,88.228,88.151,66.47749539]
[1646035144181,6.0,88.227,88.151,66.47749539]
[1646035144382,4.535,88.226,88.151,66.47749539]
[1646035144683,6.0,88.227,88.151,66.47749539]
[1646035144884,6.0,88.227,88.152,6.0]
[1646035145785,6.0,88.227,88.151,66.47749539]
[1646035145983,6.0,88.227,88.152,6.0]
[1646035147188,4.26797073,88.219,88.152,6.0]
[1646035147386,4.26797073,88.219,88.151,66.47749539]
[1646035147585,10.535,88.218,88.151,66.47749539]
[1646035147985,10.535,88.218,88.151,42.52949539]
[1646035148186,22.8613,88.217,88.151,42.52949539]
[1646035148386,17.024,88.21,88.151,42.52949539]
[1646035148586,6.0,88.209,88.151,42.52949539]
[1646035149691,6.0,88.209,88.146,4.535]
[1646035149692,17.0258,88.2,88.146,4.535]
[1646035149889,6.0,88.199,88.146,4.535]
[1646035150491,24.4692,88.198,88.146,4.535]
[1646035150691,46.4837405,88.197,88.147,45.61274279]
[1646035150991,40.4837405,88.197,88.147,45.61274279]
[1646035151791,24.4692,88.198,88.147,45.61274279]
[1646035151991,24.4692,88.198,88.148,6.0]
[1646035152893,36.07799458,88.197,88.148,6.0]
[1646035153693,24.4692,88.198,88.148,6.0]
[1646035157501,24.4692,88.198,88.146,4.535]
[1646035161409,6.0,88.197,88.146,4.535]
[1646035162009,4.535,88.196,88.146,4.535]
[1646035162609,4.535,88.197,88.146,4.535]
[1646035163710,6.0,88.196,88.146,4.535]
[1646035163910,4.535,88.195,88.146,4.535]
[1646035164110,6.0,88.194,88.146,4.535]
[1646035164311,13.08487607,88.193,88.147,41.61260611]
[1646035166213,24.4692,88.198,88.147,41.61260611]
[1646035166611,24.4692,88.198,88.148,113.1]
[1646035166811,24.4692,88.198,88.15,113.1]
[1646035167011,24.4692,88.198,88.152,113.1]
[1646035167212,24.4692,88.198,88.153,6.0]
[1646035168215,24.4692,88.198,88.153,119.1]
[1646035168416,17.0232,88.22,88.153,119.1]
[1646035168624,6.0,88.215,88.153,119.1]
[1646035169015,42.75990307,88.217,88.153,119.1]
[1646035169216,4.535,88.239,88.153,119.1]
[1646035169417,17.0195,88.24,88.155,113.1]
[1646035169616,24.4831,88.244,88.171,113.1]
[1646035169816,4.535,88.267,88.181,113.1]
[1646035170018,24.4286,88.268,88.183,113.1]
[1646035170216,40.38057095,88.267,88.185,113.1]
[1646035170415,4.533,88.266,88.187,113.1]
[1646035170617,27.3982,88.266,88.191,113.1]
[1646035170817,27.3982,88.266,88.193,113.1]
[1646035171015,22.8652,88.266,88.194,6.0]
[1646035171816,22.8652,88.266,88.195,113.1]
[1646035172016,22.8652,88.266,88.199,113.1]
[1646035172316,22.8652,88.266,88.201,113.1]
[1646035172516,22.8652,88.266,88.203,113.1]
[1646035172719,22.8652,88.266,88.205,113.1]
[1646035172917,22.8652,88.266,88.207,113.1]
[1646035173216,22.8652,88.266,88.209,113.1]
[1646035173418,22.8652,88.266,88.211,113.1]
[1646035173620,22.8652,88.266,88.213,46.48746541]
[1646035173817,22.8652,88.266,88.214,6.0]
[1646035177122,22.8652,88.266,88.215,113.1]
[1646035177323,22.7323,88.288,88.217,113.1]
[1646035177522,22.7323,88.288,88.218,6.0]
[1646035177726,22.7323,88.288,88.216,6.0]
[1646035178123,33.36621904,88.287,88.214,6.0]
[1646035178523,33.36621904,88.287,88.215,113.1]
[1646035178724,33.36621904,88.287,88.217,113.1]
[1646035178927,33.36621904,88.287,88.219,113.1]
[1646035179123,33.36621904,88.287,88.218,6.0]
[1646035179124,33.36621904,88.287,88.22,6.0]
[1646035179324,33.36621904,88.287,88.218,6.0]
[1646035179524,33.36621904,88.287,88.213,46.48746541]
[1646035179525,4.532,88.286,88.214,6.0]
[1646035179728,6.0,88.285,88.214,6.0]
[1646035180326,6.0,88.286,88.215,2.74678921]
[1646035180528,6.0,88.286,88.21,17.2369]
[1646035181226,6.0,88.286,88.211,46.13262286]
[1646035181628,17.0106,88.28,88.211,46.13262286]
[1646035181830,6.0,88.279,88.211,46.13262286]
[1646035182328,22.9943,88.278,88.211,46.13262286]
[1646035182529,6.0,88.277,88.211,46.13262286]
[1646035185551,17.0123,88.27,88.193,29.041]
[1646035185756,10.533,88.269,88.193,29.041]
[1646035186455,24.4449,88.268,88.193,29.041]
[1646035186656,21.91849219,88.267,88.194,53.3348944]
[1646035186856,10.533,88.267,88.195,113.1]
[1646035187059,24.4449,88.268,88.197,113.1]
[1646035187358,24.4449,88.268,88.199,113.1]
[1646035187655,24.4449,88.268,88.201,113.1]
[1646035187856,24.4449,88.268,88.202,6.0]
[1646035188056,38.5556449,88.267,88.202,6.0]
[1646035188457,38.5556449,88.267,88.2,23.0095]
[1646035190260,6.0,88.266,88.195,23.0202]
[1646035190459,4.533,88.265,88.193,4.533]
[1646035190664,6.0,88.264,88.193,4.533]
[1646035190865,4.533,88.263,88.193,4.533]
[1646035191259,4.533,88.266,88.193,4.533]
[1646035191461,17.0148,88.26,88.193,4.533]
[1646035193067,17.0175,88.25,88.193,4.533]
[1646035193265,6.19606633,88.248,88.193,4.533]
[1646035193472,4.534,88.247,88.193,4.533]
[1646035193871,6.19606633,88.248,88.193,4.533]
[1646035195069,6.19606633,88.248,88.193,7.27978921]
[1646035195269,6.19606633,88.248,88.194,6.0]
[1646035196171,6.19606633,88.248,88.193,21.4217]
[1646035196372,6.19606633,88.248,88.194,6.0]
[1646035198672,6.19606633,88.248,88.193,4.533]
[1646035199273,6.0,88.247,88.193,4.533]
[1646035200277,6.19606633,88.248,88.193,4.533]
[1646035201379,23.0884,88.249,88.194,6.0]
[1646035201778,23.0884,88.249,88.194,8.74678921]
[1646035201982,23.0884,88.249,88.195,2.74678921]
[1646035202179,23.0884,88.249,88.196,6.0]
[1646035202397,23.0884,88.249,88.197,55.89044501]
[1646035202597,23.0884,88.249,88.2,17.0098]
[1646035202901,23.0884,88.249,88.201,6.0]
[1646035203396,23.0884,88.249,88.199,6.0]
[1646035203600,23.0884,88.249,88.194,6.0]
[1646035204098,23.0884,88.249,88.195,58.91287276]
[1646035204298,23.0884,88.249,88.196,6.0]
[1646035207703,44.65617366,88.255,88.2,17.0098]
[1646035207902,44.65617366,88.255,88.201,6.0]
[1646035208715,17.0107,88.28,88.201,6.0]
[1646035208906,4.533,88.321,88.21,17.0074]
[1646035209104,4.7453825,88.383,88.212,70.0]
[1646035209305,3.162584,88.366,88.233,5.0]
[1646035209505,67.82,88.431,88.213,10.4359]
[1646035209506,67.82,88.431,88.234,6.0]
[1646035209708,113.1,88.407,88.213,92.32759727]
[1646035209910,67.82,88.4,88.234,2.74678921]
[1646035210105,57.56473943,88.396,88.235,10.529]
[1646035210306,113.1,88.389,88.26,16.9969]
[1646035210507,57.56473943,88.396,88.261,10.527]
[1646035210707,57.56473943,88.396,88.261,40.40308653]
[1646035210906,57.56473943,88.396,88.262,65.71848731]
[1646035211108,57.56473943,88.396,88.263,10.527]
[1646035211311,6.0,88.395,88.29,16.9912]
[1646035211507,57.56473943,88.396,88.292,113.1]
[1646035211707,57.56473943,88.396,88.294,113.1]
[1646035211909,57.56473943,88.396,88.296,113.1]
[1646035212107,6.0,88.395,88.297,10.527]
[1646035212306,6.0,88.395,88.3,16.9897]
[1646035212510,6.0,88.395,88.301,6.0]
[1646035213710,57.56473943,88.396,88.301,6.0]
[1646035213912,6.0,88.395,88.302,113.1]
[1646035214110,45.4347,88.394,88.303,6.0]
[1646035214311,6.0,88.393,88.303,6.0]
[1646035214712,6.0,88.393,88.301,6.0]
[1646035214916,6.0,88.393,88.302,113.1]
[1646035215114,45.4347,88.394,88.311,113.1]
[1646035215413,57.56473943,88.396,88.313,113.1]
[1646035215614,57.56473943,88.396,88.315,113.1]
[1646035215816,57.56473943,88.396,88.317,113.1]
[1646035216115,57.56473943,88.396,88.318,10.527]
[1646035216315,57.56473943,88.396,88.316,6.0]
[1646035216518,57.56473943,88.396,88.319,6.0]
[1646035217117,57.56473943,88.396,88.318,6.0]
[1646035217618,57.56473943,88.396,88.32,16.9859]
[1646035217916,57.56473943,88.396,88.321,6.0]
[1646035218315,6.0,88.395,88.321,6.0]
[1646035218517,57.56473943,88.396,88.294,113.1]
[1646035218716,23.555,88.395,88.295,6.0]
[1646035218918,23.555,88.395,88.3,16.9886]
[1646035219119,57.56473943,88.396,88.301,119.1]
[1646035219317,57.56473943,88.396,88.311,113.1]
[1646035219516,57.56473943,88.396,88.313,113.1]
[1646035219716,57.56473943,88.396,88.315,113.1]
[1646035219917,57.56473943,88.396,88.317,113.1]
[1646035220117,57.56473943,88.396,88.319,113.1]
[1646035220318,57.56473943,88.396,88.321,113.1]
[1646035220517,57.56473943,88.396,88.34,16.9825]
[1646035220717,57.56473943,88.396,88.341,6.0]
[1646035221921,22.5944,88.417,88.351,113.1]
[1646035222120,22.5944,88.417,88.352,119.1]
[1646035222321,23.3808,88.418,88.352,121.84678921]
[1646035222721,54.14349198,88.417,88.353,2.74678921]
[1646035222922,54.14349198,88.417,88.354,6.0]
[1646035223326,54.14349198,88.417,88.355,2.74678921]
[1646035223525,54.14349198,88.417,88.36,16.9784]
[1646035223725,54.14349198,88.417,88.361,6.0]
[1646035223927,54.14349198,88.417,88.354,6.0]
[1646035224129,54.14349198,88.417,88.339,6.0]
[1646035224523,54.14349198,88.417,88.34,115.84678921]
[1646035224723,54.14349198,88.417,88.342,113.1]
[1646035224923,54.14349198,88.417,88.343,6.0]
[1646035225326,54.14349198,88.417,88.343,8.74678921]
[1646035225523,54.14349198,88.417,88.344,113.1]
[1646035225723,54.14349198,88.417,88.345,6.0]
[1646035225924,54.14349198,88.417,88.343,6.0]
[1646035226123,54.14349198,88.417,88.345,2.74678921]
[1646035226324,54.14349198,88.417,88.346,6.0]
[1646035226728,54.14349198,88.417,88.334,2.74678921]
[1646035226924,29.3343,88.416,88.317,2.74678921]
[1646035227125,29.3343,88.416,88.319,113.1]
[1646035227330,29.3343,88.416,88.321,113.1]
[1646035227524,29.3343,88.416,88.32,6.0]
[1646035227525,29.3343,88.416,88.33,16.9841]
[1646035227725,29.3343,88.416,88.331,6.0]
[1646035228129,29.3343,88.416,88.331,8.74678921]
[1646035228328,29.3343,88.416,88.332,2.74678921]
[1646035228549,29.3343,88.416,88.333,6.0]
[1646035228927,29.3343,88.416,88.334,2.74678921]
[1646035229128,29.3343,88.416,88.335,6.0]
[1646035229530,29.3343,88.416,88.336,2.74678921]
[1646035229729,29.3343,88.416,88.337,6.0]
[1646035229929,29.3343,88.416,88.33,16.9841]
[1646035230330,29.3343,88.416,88.331,6.0]
[1646035230732,29.3343,88.416,88.313,2.74678921]
[1646035230932,113.1,88.415,88.31,16.9877]
[1646035231131,113.1,88.413,88.31,16.9877]
[1646035231330,6.0,88.412,88.31,16.9877]
[1646035231936,16.9909,88.41,88.279,29.35503327]
[1646035232134,113.1,88.409,88.28,6.0]
[1646035232434,113.1,88.407,88.279,2.74678921]
[1646035232633,113.1,88.405,88.281,2.74678921]
[1646035232836,113.1,88.401,88.281,2.74678921]
[1646035233034,130.0948,88.39,88.281,2.74678921]
[1646035233234,58.08844846,88.388,88.264,113.1]
[1646035233433,6.0,88.387,88.265,6.0]
[1646035233634,113.1,88.386,88.265,2.74678921]
[1646035233833,113.1,88.384,88.266,2.74678921]
[1646035234034,113.1,88.382,88.266,2.74678921]
[1646035234434,113.1,88.38,88.266,2.74678921]
[1646035234636,113.1,88.369,88.266,2.74678921]
[1646035234840,71.6431477,88.368,88.25,16.9989]
[1646035235039,113.1,88.367,88.251,8.74678921]
[1646035235439,113.1,88.367,88.252,2.74678921]
[1646035235640,113.1,88.367,88.253,6.0]
[1646035236053,130.0999,88.36,88.253,8.74678921]
[1646035236752,113.1,88.358,88.253,6.0]
[1646035236955,113.1,88.358,88.244,6.0]
[1646035237155,113.1,88.356,88.244,6.0]
[1646035237356,130.1019,88.35,88.244,8.74678921]
[1646035237556,113.1,88.348,88.244,2.74678921]
[1646035237754,113.1,88.348,88.234,2.74678921]
[1646035238155,115.84678921,88.348,88.234,2.74678921]
[1646035238353,113.1,88.346,88.234,2.74678921]
[1646035238557,113.1,88.329,88.234,2.74678921]
[1646035238854,113.1,88.327,88.221,4.53]
[1646035239054,113.1,88.327,88.204,2.74678921]
[1646035239253,15.68703329,88.326,88.204,2.74678921]
[1646035239456,15.68703329,88.326,88.205,33.4483666]
[1646035239658,6.0,88.326,88.206,4.531]
[1646035239958,17.0075,88.32,88.21,17.0082]
[1646035240155,6.0,88.319,88.211,10.531]
[1646035240356,6.0,88.319,88.211,4.531]
[1646035240555,6.0,88.319,88.211,117.631]
[1646035240755,6.0,88.319,88.212,149.29515581]
[1646035240955,6.0,88.326,88.22,17.0061]
[1646035241356,113.1,88.325,88.22,17.0061]
[1646035241556,113.1,88.323,88.22,17.0061]
[1646035241759,6.0,88.326,88.22,17.0061]
[1646035242057,6.0,88.326,88.221,7.27778921]
[1646035242257,6.0,88.326,88.222,6.0]
[1646035242457,6.0,88.326,88.23,17.0043]
[1646035242656,6.0,88.326,88.231,4.531]
[1646035243056,115.84678921,88.325,88.231,7.27778921]
[1646035243356,113.1,88.323,88.202,4.531]
[1646035243560,113.1,88.321,88.202,4.531]
[1646035243961,130.1093,88.31,88.21,17.0071]
[1646035244162,54.58228172,88.308,88.21,17.0071]
[1646035244366,119.1,88.307,88.188,2.74678921]
[1646035244563,121.84678921,88.307,88.189,10.532]
[1646035244963,2.74678921,88.306,88.189,10.532]
[1646035245163,113.1,88.304,88.189,10.532]
[1646035245363,6.0,88.303,88.189,10.532]
[1646035245563,8.74678921,88.303,88.19,132.85778921]
[1646035245763,6.0,88.303,88.192,113.1]
[1646035245962,6.0,88.303,88.193,10.532]
[1646035246163,6.0,88.307,88.193,10.532]
[1646035246362,2.74678921,88.303,88.193,8.74678921]
[1646035246564,17.0119,88.3,88.193,2.74678921]
[1646035246763,119.1,88.299,88.182,4.532]
[1646035246962,119.1,88.299,88.181,23.8637]
[1646035246963,121.84678921,88.299,88.181,23.8637]
[1646035247163,2.74678921,88.298,88.181,23.8637]
[1646035247368,113.1,88.296,88.181,23.8637]
[1646035247566,113.1,88.294,88.178,4.533]
[1646035247763,113.1,88.292,88.179,6.0]
[1646035247963,113.1,88.29,88.179,6.0]
[1646035248164,113.1,88.288,88.179,6.0]
[1646035248370,113.1,88.286,88.179,6.0]
[1646035248663,6.0,88.287,88.178,4.533]
[1646035248664,113.1,88.284,88.178,4.533]
[1646035248864,113.1,88.282,88.178,4.533]
[1646035249263,113.1,88.278,88.178,4.533]
[1646035249464,113.1,88.276,88.178,4.533]
[1646035249866,113.1,88.274,88.178,4.533]
[1646035250063,113.1,88.272,88.178,4.533]
[1646035250263,6.44,88.272,88.178,4.533]
[1646035250464,6.0,88.271,88.178,4.533]
[1646035250672,24.2428,88.27,88.179,6.0]
[1646035250865,6.0,88.269,88.179,8.74678921]
[1646035251064,6.0,88.269,88.18,2.74678921]
[1646035251266,6.0,88.269,88.181,6.0]
[1646035251465,6.0,88.269,88.19,17.012]
[1646035251668,6.0,88.269,88.191,6.0]
[1646035251965,6.0,88.269,88.191,8.74678921]
[1646035252167,6.0,88.269,88.192,2.74678921]
[1646035252370,6.0,88.269,88.193,6.0]
[1646035252567,6.0,88.269,88.2,17.0101]
[1646035252768,6.0,88.269,88.179,27.4483666]
[1646035252769,6.0,88.269,88.194,2.74678921]
[1646035252968,6.0,88.269,88.181,2.74678921]
[1646035253166,6.0,88.269,88.182,6.0]
[1646035253367,6.0,88.269,88.167,2.74678921]
[1646035253767,2.74678921,88.268,88.157,2.74678921]
[1646035253966,6.0,88.267,88.157,2.74678921]
[1646035254369,8.74678921,88.267,88.152,113.1]
[1646035254567,8.74678921,88.267,88.16,17.0165]